Cogmind - Beta 11.1 @@@ ROGUE MODE // 2022.07.14 @ 19:35:35 // Winter2019/RPGLIKE Player: Hermelin Result: Destroyed by X-72 Disruptor with Improved Arc Projector Performance ------------- Evolutions (5) 2500 Regions Visited (13) 2600 Robots Destroyed (200) 1000 Value Destroyed (7020) 7020 Prototype IDs (49) 980 Alien Tech Used (0) 0 Bonus (509) 509 TOTAL SCORE: 14609 Bonus ------- High Alert Combat Kills 932 Follower Combat Kills 227 Entered DSFs 500 Aligned with FarCom 300 Met Data Miner 300 Friendly Fire -1750 Cogmind --------- Core Integrity 0/1000 Matter 28/300 Energy 1071/1100 System Corruption 0% Temperature Cool (0) Movement Hovering (68) Location -5/DSF Parts ------- > --- POWER (3) -------- F-cell Engine F-cell Engine Fusion Compressor > --- PROPULSION (4) --- Combat Antigrav System Combat Antigrav System Combat Antigrav System Combat Antigrav System > --- UTILITY (12) ----- Power Amplifier Improved Cooling System Compact Battery Improved Signal Interpreter Advanced Terrain Scanner Advanced Terrain Scanner Core Analyzer Improved Reaction Control System Insulated Plating Light Regenerative Plating Improved Shield Generator Improved Hacking Suite > --- WEAPON (3) ------- Improved Heavy Machine Gun Force Lance Force Lance > --- INVENTORY (4) ---- Medium Reactive Plating Plasma Cutter Impact Mace Force Lance Peak State ------------ > --- POWER ------------ F-cell Engine F-cell Engine Fusion Compressor > --- PROPULSION ------- Combat Antigrav System Combat Antigrav System Combat Antigrav System Combat Antigrav System > --- UTILITY ---------- Power Amplifier Improved Cooling System Compact Battery Improved Signal Interpreter Advanced Terrain Scanner Advanced Terrain Scanner Core Analyzer Improved Reaction Control System Insulated Plating Light Regenerative Plating Improved Shield Generator Improved Hacking Suite > --- WEAPON ----------- Improved Heavy Machine Gun Force Lance Force Lance > --- INVENTORY -------- Medium Reactive Plating Plasma Cutter Impact Mace Force Lance [Rating: 122] Favorites ----------- Power Improved Deuterium Engine Engine Improved Deuterium Engine Power Core Fusion Compressor Propulsion Light Treads Treads Light Treads Wheel Wheel Hover Unit Combat Antigrav System Flight Unit Improved Flight Unit Utility Improved Terrain Scanner Device Improved Terrain Scanner Storage Matter Compressor Processor Experimental Targeting Computer Hackware Hacking Suite Protection Medium Armor Plating Weapon Impact Mace Energy Gun Spread Laser Energy Cannon Latent Energy Streamer Ballistic Gun Light Assault Rifle Ballistic Cannon Hypervelocity Gauss Cannon Launcher Mini Grenade Launcher Special Weapon Remote Datajack Impact Weapon Impact Mace Slashing Weapon Katana Piercing Weapon Spear Build | -11 -10 -10 -10 -9 -8 -7 -7 -7 -7 -6 -6 -5 -5 ------- Run | Scr Mat Min Exi Min Mat Fac Low Low Dat Pro Fac Fac DSF Slots Evolved 18 | 3 1 1 . 2 3 2 . 1 . . 4 . 1 Power 2 | . . . . . . 1 . . . . 1 . . Propulsion 3 | 1 . . . . 1 . . . . . 1 . . Utility 11 | 1 1 1 . 1 2 1 . 1 . . 2 . 1 Weapon 2 | 1 . . . 1 . . . . . . . . . Parts Attached 134 | 7 13 8 11 4 25 12 1 5 1 1 36 . 10 Power 10 | 1 1 1 . . 2 1 . . . . 3 . 1 Engine 8 | 1 1 1 . . 2 1 . . . . 2 . . Core 2 | . . . . . . . . . . . 1 . 1 Reactor . | . . . . . . . . . . . . . . Propulsion 21 | 2 4 . . 1 8 2 . . . . 4 . . Treads 10 | 1 1 . . . 6 2 . . . . . . . Leg . | . . . . . . . . . . . . . . Wheel 6 | 1 2 . . 1 2 . . . . . . . . Hover 4 | . . . . . . . . . . . 4 . . Flight 1 | . 1 . . . . . . . . . . . . Utility 62 | 2 5 3 7 1 7 7 . 3 1 . 22 . 4 Device 28 | 2 . 1 4 1 3 2 . 1 . . 11 . 3 Storage 6 | . . . . . . 2 . 2 . . 2 . . Processor 5 | . . . 2 . . . . . . . 2 . 1 Hackware 4 | . . 1 . . 1 1 . . . . 1 . . Protection 19 | . 5 1 1 . 3 2 . . 1 . 6 . . Artifact . | . . . . . . . . . . . . . . Weapon 41 | 2 3 4 4 2 8 2 1 2 . 1 7 . 5 Energy Gun 3 | . 1 1 . . 1 . . . . . . . . Energy Cannon 3 | . . . 1 1 . . . 1 . . . . . Ballistic Gun 13 | 2 2 1 3 . . . . . . 1 3 . 1 Ballistic Cannon 1 | . . . . . . . . . . . . . 1 Launcher 8 | . . 2 . . 2 . . . . . 3 . 1 Special Weapon 2 | . . . . . . 1 1 . . . . . . Impact Weapon 7 | . . . . . 5 1 . . . . 1 . . Slashing Weapon 1 | . . . . 1 . . . . . . . . . Piercing Weapon 3 | . . . . . . . . 1 . . . . 2 Special Melee Weapon . | . . . . . . . . . . . . . . Unidentified Prototypes 11 | . 2 1 5 . 1 . . . . . 2 . . Parts Lost 7 | . 1 . 1 . . . . 3 . . 1 . 1 Power . | . . . . . . . . . . . . . . Propulsion . | . . . . . . . . . . . . . . Utility 5 | . 1 . 1 . . . . 2 . . . . 1 Weapon 2 | . . . . . . . . 1 . . 1 . . Highest Loss Streak 2 | . 1 . 1 . . . . 2 . . 1 . 1 To Critical Strikes . | . . . . . . . . . . . . . . Average Slot Usage (%) 97 | . 97 99 98 90 99 97 100 97 88 91 96 100 98 Engine 10 | . 12 11 11 10 7 11 12 11 11 11 8 9 9 Treads 12 | . 14 11 11 10 14 14 18 17 17 17 8 . . Wheel 5 | . 10 11 11 10 7 3 . . . . . . . Hover 2 | . . . . . . . . . . . 8 19 18 Device 15 | . 13 14 18 7 8 11 12 10 11 11 22 23 22 Storage 2 | . . . . . . 5 6 10 11 11 4 4 4 Processor 6 | . . . 4 20 14 12 12 10 . . 3 4 9 Hackware 10 | . . 10 11 10 14 12 12 11 11 11 10 9 7 Protection 9 | . 19 18 10 . 5 5 6 5 11 11 10 9 9 Energy Gun 1 | . 6 5 . . . . . . . . . . . Energy Cannon 2 | . . . 2 9 7 6 1 2 . . . . . Ballistic Gun 7 | . 19 11 10 10 7 6 6 1 . 3 1 . 2 Launcher 2 | . . 4 6 . . . . . . . 2 4 3 Impact Weapon 3 | . . . . . 5 6 6 5 5 5 6 4 2 Piercing Weapon 1 | . . . . . . . . . 5 5 4 4 2 Naked Turns . | . . . . . . . . . . . . . . Heaviest Build 96 | 10 29 38 36 30 37 57 57 55 64 69 96 63 70 Greatest Support 73 | 10 40 10 32 10 40 68 68 68 68 68 73 69 69 Greatest Overweight (x) 3 | . 2 3 3 2 3 3 . . . 1 1 . 1 Average Overweight (x) 1 | . 1 2 2 1 1 1 . . . . . . . Largest Inventory Capacity 4 | 2 3 3 3 3 4 4 4 4 4 4 4 4 4 Average Capacity 3 | 1 2 3 3 3 3 4 4 4 4 4 4 4 4 Most Carried 4 | 2 3 3 3 3 4 4 4 4 1 4 4 4 4 Average Carried 2 | 1 2 2 2 2 3 3 4 3 1 3 3 4 4 Final Capacity 4 | 2 3 3 3 3 4 4 4 4 4 4 4 4 4 Final Carried 4 | 2 3 3 3 3 4 4 4 3 1 4 4 4 4 Class Distribution -------------------- 44% | Hacker-Mutant 38% | Mutant 16% | Scavenger-Mutant Dominant Class ---------------- Mutant | -10/Materials Hacker-Mutant | -10/Mines Hacker-Mutant | -10/Exiles Scavenger-Mutant | -9/Mines Scavenger-Mutant | -8/Materials Hacker-Mutant | -7/Factory Hacker-Mutant | -7/Lower Caves Hacker-Mutant | -7/Lower Caves Hacker-Mutant | -7/Data Miner Hacker-Mutant | -6/Proximity Caves Hacker-Mutant | -6/Factory Hacker-Mutant | -5/Factory Hacker-Mutant | -5/DSF Resources | -11 -10 -10 -10 -9 -8 -7 -7 -7 -7 -6 -6 -5 -5 ----------- Run | Scr Mat Min Exi Min Mat Fac Low Low Dat Pro Fac Fac DSF Matter Collected 5491 | 268 417 242 773 240 1385 391 191 477 . 112 976 . 19 Remotely . | . . . . . . . . . . . . . . Salvage Created 8722 | 13 549 118 436 699 2842 525 98 404 . 110 2790 . 138 Parts 554 | 4 55 16 71 43 159 32 15 15 . 6 121 . 17 Haulers Intercepted 11 | . 2 . . . 4 2 . . . . 3 . . Recyclers Shooed 3 | . 1 1 . . . . . . . . 1 . . Parts Field Recycled . | . . . . . . . . . . . . . . Retrieved Matter . | . . . . . . . . . . . . . . Parts Self-Destructed 33 | . . . . . . . 15 9 . 9 . . . Prevented 6 | . . . . . . . . 5 . 1 . . . Kills | -11 -10 -10 -10 -9 -8 -7 -7 -7 -7 -6 -6 -5 -5 ------- Run | Scr Mat Min Exi Min Mat Fac Low Low Dat Pro Fac Fac DSF Combat Hostiles Destroyed 170 | . 17 16 4 12 47 8 5 7 . 3 45 . 6 Melee 15 | . . . . . . . . . . 1 12 . 2 Guns 90 | . 17 5 1 11 36 7 5 3 . 2 3 . . Cannons 4 | . . . . . . . . . . . . . 4 AOE 40 | . . 11 3 1 10 1 . . . . 14 . . Classes Destroyed 25 | 1 7 2 2 2 5 2 . 3 . . . . 1 Worker 11 | . 1 . . . 5 . . . . . 5 . . Builder 7 | . 1 1 . 1 1 . . . . . 3 . . Tunneler 3 | 1 . . . 2 . . . . . . . . . Hauler 11 | . 2 . . . 4 2 . . . . 3 . . Recycler 4 | . . . . 2 1 . . . . . 1 . . Operator 3 | . 1 . . . 1 . . . . . 1 . . Turret 1 | . . . 1 . . . . . . . . . . Watcher 7 | . 2 . . . 4 . . . . . 1 . . Swarmer 21 | . 5 3 . 3 2 . . . . 2 6 . . Cutter 5 | . . . . . . . . . . . . . 5 Grunt 83 | . 12 2 . 8 30 . 4 2 . 1 24 . . Brawler 4 | . . . . . 2 . . 1 . . 1 . . Duelist 5 | . . . . 1 4 . . . . . . . . Protector 2 | . . . . . 2 . . . . . . . . Sentry 9 | . . . . . 4 1 . . . . 4 . . Demolisher 3 | . . 1 . . . 2 . . . . . . . Specialist 4 | . . . . . 2 . . . . . 2 . . Hunter 6 | . . . . . . 2 1 . . . 2 . 1 Programmer 6 | . . . . . . 2 . . . . 4 . . Heavy 2 | . . . . . 1 . . . . . 1 . . Behemoth 2 | . . . . . . . . 1 . . 1 . . Zionite 3 | . . . 3 . . . . . . . . . . Samaritan 2 | . . . . . . . . 1 . 1 . . . Master Thief 3 | . . . . . . . . 3 . . . . . Assembled 18 | . . 10 7 . . 1 . . . . . . . Best Kill Streak 11 | 1 7 10 4 5 8 4 4 3 . 2 11 . 4 Combat Bots Only 10 | . 7 10 3 3 6 3 4 3 . 2 9 . 4 Max Kills in Single Turn 5 | 1 2 5 4 2 5 1 1 1 . 1 3 . 1 Gunslinging 1 | . 1 . . . . . . . . . . . . Exploded 5 | . . 5 2 1 4 1 . . . . 3 . . Melee 1 | . . . . . . . . . . 1 1 . 1 Uniques/NPCs Destroyed 5 | . . 1 4 . . . . . . . . . . YI-UF0 (-10/Mines) 8R-AWN (-10/Exiles) EX-HEX (-10/Exiles) EX-DEC (-10/Exiles) EX-BIN (-10/Exiles) Combat | -11 -10 -10 -10 -9 -8 -7 -7 -7 -7 -6 -6 -5 -5 -------- Run | Scr Mat Min Exi Min Mat Fac Low Low Dat Pro Fac Fac DSF Damage Taken 11451 | . 849 350 1379 191 2551 745 162 732 . 258 3094 . 1140 Core 8061 | . 581 228 988 154 1959 553 114 558 . 165 1983 . 778 Absorbed by Shields 2196 | . . . . . . 222 61 265 . 112 1125 . 411 Redirected to Core 6450 | . 417 173 810 120 1641 457 102 405 . 132 1573 . 620 Regen/Repaired (Parts) 880 | . . . . . 109 293 . . . . 433 5 40 Core Remaining (%) 67 | 100 . . . 40 68 . . . . 58 70 . . Volleys Fired 544 | 1 63 27 95 36 161 47 19 31 . 6 41 . 17 Largest 2 | 2 2 2 2 1 1 1 1 1 . 1 1 . 2 Hottest 90 | 40 88 88 90 60 60 60 30 60 . 30 43 . 76 Shots Fired 699 | 2 126 46 146 36 161 48 19 32 . 7 43 . 33 Gun 625 | 2 126 40 140 35 156 45 18 29 . 7 10 . 17 Cannon 29 | . . . 3 1 4 1 1 3 . . . . 16 Launcher 43 | . . 6 3 . 1 . . . . . 33 . . Special 2 | . . . . . . 2 . . . . . . . Kinetic 629 | 2 120 34 140 35 156 45 18 29 . 7 10 . 33 Thermal 12 | . 6 6 . . . . . . . . . . . Explosive 10 | . . 6 3 . 1 . . . . . . . . Electromagnetic 46 | . . . 3 1 4 1 1 3 . . 33 . . Robot Hit Streak 22 | 1 11 7 17 10 19 6 6 8 . 2 20 . 22 Robot Miss Streak 5 | . 5 2 2 4 5 2 1 1 . 1 1 . 2 Penetration Max 2 | . . . 1 2 2 . 1 1 . . . . 1 Secondary Targets 4 | . 3 1 . . . . . . . . . . . Max Gunslinging Chain 1 | . 1 1 . . . . . . . . . . . Shots Hit Robots 596 | 1 73 33 116 23 127 33 14 34 . 11 102 . 29 Core Hits 377 | 2 45 45 46 20 87 15 8 16 . 6 74 . 13 Critical Kills 59 | . . . 4 10 25 7 5 4 . . . . 4 Critical Parts Destroyed 93 | . . . 11 6 42 8 1 8 . 1 14 . 2 Critical Strikes 164 | . . . 15 16 69 15 6 18 . 1 17 . 7 Destroy 137 | . . . 15 16 67 15 6 12 . . . . 6 Smash 22 | . . . . . 1 . . 5 . 1 15 . . Sever 1 | . . . . . 1 . . . . . . . . Impale 4 | . . . . . . . . 1 . . 2 . 1 Melee Attacks 151 | . . . . . 15 1 . 15 . 7 100 . 13 Impact 112 | . . . . . 10 1 . 13 . 6 71 . 11 Slashing 5 | . . . . . 5 . . . . . . . . Piercing 34 | . . . . . . . . 2 . 1 29 . 2 Sneak Attacks 8 | . . . . . 2 . . . . 1 5 . . Combat Hostiles 1 | . . . . . . . . . . . 1 . . Follow-up Attacks 17 | . . . . . . . . 2 . 1 12 . 2 Damage Inflicted 20093 | 20 904 1064 2473 747 5163 778 250 1140 . 496 6325 . 733 Guns 8310 | 20 904 491 1908 614 2525 603 250 403 . 95 255 . 242 Cannons 281 | . . . 5 5 39 8 . 11 . . . . 213 Explosions 6324 | . . 573 560 128 2277 125 . 209 . . 2452 . . Melee 5178 | . . . . . 322 42 . 517 . 401 3618 . 278 Ramming . | . . . . . . . . . . . . . . Kinetic 8353 | 20 816 409 1908 614 2525 603 250 403 . 95 255 . 455 Thermal 688 | . 88 82 . . 85 . . . . . 433 . . Explosive 1014 | . . 573 441 . . . . . . . . . . Electromagnetic 4849 | . . . 124 133 2220 133 . 220 . . 2019 . . Impact 4125 | . . . . . 192 42 . 490 . 369 2789 . 243 Slashing 141 | . . . . . 141 . . . . . . . . Piercing 923 | . . . . . . . . 27 . 32 829 . 35 Highest Corruption 13 | . 1 1 10 2 11 5 6 13 13 13 6 . . Average Corruption 3 | . 1 1 2 1 6 2 5 7 13 13 3 . . Corruption Purged 23 | . . . 12 2 . . . . . . 9 . . Corruption Blocked . | . . . . . . . . . . . . . . Effects 170 | . 9 6 33 1 31 9 19 18 5 13 26 . . Message Errors 40 | . 1 4 10 . 7 1 2 7 2 2 4 . . Matter Fused 47 | . 2 . 11 . 5 2 7 6 1 4 9 . . Heat Flow Errors 27 | . 2 . 6 . 8 . 3 2 1 3 2 . . Energy Discharges 16 | . 2 . 3 . 2 2 1 1 . 1 4 . . Parts Rejected 1 | . . . . . . . . 1 . . . . . Data Loss (minor) 20 | . 1 2 1 . 4 3 3 . 1 1 4 . . Data Loss (major) 5 | . 1 . . 1 1 . 1 . . . 1 . . Misfires 9 | . . . 2 . 1 1 1 1 . 1 2 . . Alerts 3 | . . . . . 2 . . . . 1 . . . Weapon Failures 2 | . . . . . 1 . 1 . . . . . . Overload Shots . | . . . . . . . . . . . . . . Overflow Damage 1811 | . . 11 21 . 90 13 . 351 . 171 1139 . 15 Projectiles 3 | . . . . . . . . 3 . . . . . Explosions 90 | . . 11 21 . 29 13 . . . . 16 . . Melee 1718 | . . . . . 61 . . 348 . 171 1123 . 15 Knockbacks 16 | . . . . . . . . 2 . . 11 . 3 Impact 12 | . . . . . . . . 2 . . 9 . 1 Kinetic 2 | . . . . . . . . . . . . . 2 Secondary 2 | . . . . . . . . . . . 2 . . Self-Inflicted Damage 362 | . . 22 105 . 151 . . 84 . . . . . Shots 7 | . . 1 1 . 3 . . 2 . . . . . Rammed . | . . . . . . . . . . . . . . Targets Rammed . | . . . . . . . . . . . . . . Kicked . | . . . . . . . . . . . . . . Crushed . | . . . . . . . . . . . . . . Highest Temperature 320 | . 213 75 264 6 269 18 250 248 265 226 320 . . Average Temperature 69 | . 38 34 111 6 62 11 92 60 137 88 71 . . Received Heat Transfer 2691 | . 312 6 . 93 1197 12 87 135 . 80 769 . . Effects 1 | . . . . . . . . . . . 1 . . Interference 1 | . . . . . . . . . . . 1 . . Siege Activations . | . . . . . . . . . . . . . . Robots Corrupted 13 | . . . . . 1 . . 3 . . 9 . . Combat Hostiles 12 | . . . . . 1 . . 3 . . 8 . . Parts Fried 51 | . . . 1 . 13 1 . 13 . 1 22 . . Impact Corruptions 60 | . . . . . 1 . . 11 . 9 38 . 1 Robots Melted . | . . . . . . . . . . . . . . Combat Hostiles . | . . . . . . . . . . . . . . Parts Melted 1 | . . . . . . . . . . . . . 1 Heat Transferred 815 | . 115 100 . . 100 . . . . . 500 . . Parts Sabotaged . | . . . . . . . . . . . . . . Parts Stolen 4 | . . . . . . . . 4 . . . . . Parts Stripped . | . . . . . . . . . . . . . . Power Chain Reactions 5 | . . . . . 1 . . . . . 4 . . Missiles Intercepted . | . . . . . . . . . . . . . . Latent Energy Used 1873 | . . . 600 69 735 115 65 289 . . . . . LE Corruption 31 | . . . 9 2 11 2 1 6 . . . . . Alert | -11 -10 -10 -10 -9 -8 -7 -7 -7 -7 -6 -6 -5 -5 ------- Run | Scr Mat Min Exi Min Mat Fac Low Low Dat Pro Fac Fac DSF Peak Influence 1142 | 5 426 219 . 311 1030 496 . . . . 1142 559 561 Initial 559 | . . 109 . . 76 468 . . . . . 559 391 Average 197 | . 276 108 . 153 449 381 . . . . 389 559 481 Maximum Alert Level 4 | . 2 1 . 1 3 2 . . . . 4 2 2 Low Security (%) 62 | 100 16 93 . 78 12 . . . . . 45 . . Level 1 19 | . 74 6 . 21 40 63 . . . . 10 . 17 Level 2 11 | . 9 . . . 29 36 . . . . 16 100 82 Level 3 6 | . . . . . 18 . . . . . 25 . . Level 4 . | . . . . . . . . . . . 1 . . Level 5 . | . . . . . . . . . . . . . . High Security . | . . . . . . . . . . . . . . Max Security . | . . . . . . . . . . . . . . Squads Dispatched 41 | . 5 . . . 10 4 . . . . 18 . 4 Investigation 11 | . 3 . . . 2 2 . . . . 4 . . Extermination 4 | . . . . . . 1 . . . . 3 . . Reinforcement 19 | . 2 . . . 6 1 . . . . 6 . 4 Assault 4 | . . . . . 2 . . . . . 2 . . Garrison 3 | . . . . . . . . . . . 3 . . Intercept . | . . . . . . . . . . . . . . Searches Triggered . | . . . . . . . . . . . . . . Data Miner Redirects 3 | . . . . . . . . . . . 3 . . Construction Impeded 4 | . . . . . 2 . . . . . 2 . . Haulers Reinforced 2 | . . . . . . 1 . . . . 1 . . Active Scanning Responses . | . . . . . . . . . . . . . . Cargo Convoy Interrupts . | . . . . . . . . . . . . . . Stealth | -11 -10 -10 -10 -9 -8 -7 -7 -7 -7 -6 -6 -5 -5 --------- Run | Scr Mat Min Exi Min Mat Fac Low Low Dat Pro Fac Fac DSF Distress Signals 11 | . 2 . . . 5 2 . . . . 2 . . Communications Jammed . | . . . . . . . . . . . . . . Distress Signals . | . . . . . . . . . . . . . . Times Spotted 278 | . 31 14 31 15 71 16 5 9 . 7 64 . 15 Peak Tracking Total 10 | . 9 10 6 4 7 4 4 5 . 3 7 . 6 Tactical Retreats 42 | . . . 15 3 18 1 . . . . 3 . 2 Traps | -11 -10 -10 -10 -9 -8 -7 -7 -7 -7 -6 -6 -5 -5 ------- Run | Scr Mat Min Exi Min Mat Fac Low Low Dat Pro Fac Fac DSF Traps Triggered 2 | . . . . . . . . . . . 2 . . Indirectly 2 | . . . . . . . . . . . 2 . . Trap Hack Attempts . | . . . . . . . . . . . . . . Triggered . | . . . . . . . . . . . . . . Disarmed . | . . . . . . . . . . . . . . Reprogrammed . | . . . . . . . . . . . . . . Reused . | . . . . . . . . . . . . . . Traps Extracted . | . . . . . . . . . . . . . . Installed 2 | . . . . . . . . . . . . . 2 Triggered . | . . . . . . . . . . . . . . Machines | -11 -10 -10 -10 -9 -8 -7 -7 -7 -7 -6 -6 -5 -5 ---------- Run | Scr Mat Min Exi Min Mat Fac Low Low Dat Pro Fac Fac DSF Machines Disabled 46 | . 2 . 13 . 9 . . . . . 22 . . Max in Single Turn 11 | . 1 . 3 . 2 . . . . . 11 . . Machines Sabotaged . | . . . . . . . . . . . . . . Garrisons Compromised 1 | . . . . . . 1 . . . . . . . Overloaded Fab Kills . | . . . . . . . . . . . . . . Hacking | -11 -10 -10 -10 -9 -8 -7 -7 -7 -7 -6 -6 -5 -5 --------- Run | Scr Mat Min Exi Min Mat Fac Low Low Dat Pro Fac Fac DSF Machines Accessed 49 | . 9 1 2 1 10 6 . . 4 . 15 1 . Terminals 25 | . 7 . . 1 6 3 . . . . 7 1 . Fabricators 3 | . . . . . . . . . . . 3 . . Repair Stations 5 | . . . . . 1 2 . . . . 2 . . Recycling Units 5 | . 2 . . . 1 1 . . . . 1 . . Scanalyzers 3 | . . . . . 2 . . . . . 1 . . Garrison Access 1 | . . . . . . . . . . . 1 . . Total Hacks 227 | . 39 1 6 7 67 22 . . 31 . 53 1 . Successful 168 | . 25 1 6 5 49 13 . . 31 . 37 1 . Failed 58 | . 13 . . 2 18 9 . . . . 16 . . Catastrophic 3 | . . . . . 2 1 . . . . . . . Database Lockouts 1 | . 1 . . . . . . . . . . . . Manual 83 | . 23 . 1 6 37 3 . . . . 13 . . Terminals 118 | . 29 . . 7 48 7 . . . . 26 1 . Fabricators 10 | . . . . . . . . . . . 10 . . Repair Stations 22 | . . . . . 5 13 . . . . 4 . . Recycling Units 17 | . 10 . . . 3 2 . . . . 2 . . Scanalyzers 19 | . . . . . 11 . . . . . 8 . . Garrison Access 3 | . . . . . . . . . . . 3 . . Terminal Hacks 90 | . 11 1 6 3 21 2 . . 31 . 14 1 . Record 16 | . . . 5 . . . . . 11 . . . . Part Schematic 16 | . . . . . 2 . . . 11 . 3 . . Robot Schematic 6 | . . . . . . . . . 6 . . . . Robot Analysis 8 | . 3 . . 1 2 . . . . . 2 . . Prototype ID Bank 7 | . 1 . . . 2 . . . 3 . 1 . . Open Door 1 | . . 1 . . . . . . . . . . . Open DSF 3 | . . . . . . . . . . . 2 1 . Level Access Points 1 | . . . . . 1 . . . . . . . . Branch Access Points 3 | . 1 . . . 1 . . . . . 1 . . Machine Index 1 | . . . . . 1 . . . . . . . . Terminal Index 3 | . 1 . . 1 1 . . . . . . . . Fabricator Index 1 | . . . . . . . . . . . 1 . . Scanalyzer Index 1 | . . . . . . 1 . . . . . . . Alert Level 2 | . . . . . 2 . . . . . . . . Unreport Threat 5 | . . . . . 4 . . . . . 1 . . Locate Traps 4 | . 2 . . . . 1 . . . . 1 . . Dispatch Records 1 | . . . . . 1 . . . . . . . . Investigation Status 1 | . . . . . 1 . . . . . . . . Assault Status 1 | . . . . . 1 . . . . . . . . Recall Reinforcements 1 | . . . . . 1 . . . . . . . . Hauler Manifests 1 | . 1 . . . . . . . . . . . . Registered Components 1 | . . . . . . . . . . . 1 . . Zone Layout 5 | . 2 . . 1 1 . . . . . 1 . . EX-Prototype ID Bank 1 | . . . 1 . . . . . . . . . . Fabricator Hacks 6 | . . . . . . . . . . . 6 . . Load Schematic 3 | . . . . . . . . . . . 3 . . Build 3 | . . . . . . . . . . . 3 . . Repair Station Hacks 16 | . . . . . 4 8 . . . . 4 . . Scan Component 8 | . . . . . 2 4 . . . . 2 . . Repair 7 | . . . . . 2 3 . . . . 2 . . Refit 1 | . . . . . . 1 . . . . . . . Recycling Unit Hacks 5 | . 2 . . . 1 1 . . . . 1 . . Report Inventory 2 | . 1 . . . 1 . . . . . . . . Retrieve Components 3 | . 1 . . . . 1 . . . . 1 . . Scanalyzer 18 | . . . . . 11 . . . . . 7 . . Insert Component 8 | . . . . . 5 . . . . . 3 . . Analyze 10 | . . . . . 6 . . . . . 4 . . Garrison Access Hacks . | . . . . . . . . . . . . . . Unauthorized Hacks 33 | . 12 . . 2 12 2 . . . . 5 . . Terminals 23 | . 7 . . 2 10 . . . . . 4 . . Track 13 | . 4 . . 1 5 . . . . . 3 . . Assimilate 1 | . 1 . . . . . . . . . . . . Botnet 6 | . 1 . . . 4 . . . . . 1 . . Operators 3 | . 1 . . 1 1 . . . . . . . . Fabricators 1 | . . . . . . . . . . . 1 . . Prioritize 1 | . . . . . . . . . . . 1 . . Repair Stations 1 | . . . . . . 1 . . . . . . . Mechanics 1 | . . . . . . 1 . . . . . . . Recycling Units 8 | . 5 . . . 2 1 . . . . . . . Recyclers 2 | . 1 . . . 1 . . . . . . . . Mask 4 | . 2 . . . 1 1 . . . . . . . Tunnel 2 | . 2 . . . . . . . . . . . . Scanalyzers . | . . . . . . . . . . . . . . Garrison Access . | . . . . . . . . . . . . . . Data Cores Recovered . | . . . . . . . . . . . . . . Used . | . . . . . . . . . . . . . . Hacking Detections 32 | . 6 . . 1 7 6 . . . . 12 . . Full Trace Events 8 | . 1 . . . 2 1 . . . . 4 . . Feedback Events 1 | . 1 . . . . . . . . . . . . Corruption 1 | . 1 . . . . . . . . . . . . Feedback Blocked . | . . . . . . . . . . . . . . Robot Schematics Acquired 6 | . . . . . . . . . 6 . . . . Robots Built . | . . . . . . . . . . . . . . Authchips . | . . . . . . . . . . . . . . Time . | . . . . . . . . . . . . . . Total Robot Build Rating . | . . . . . . . . . . . . . . Part Schematics Acquired 24 | . . . . . 7 . . . 11 . 6 . . Parts Built 5 | . . . . . . . . . . . 5 . . Authchips . | . . . . . . . . . . . . . . Time 172 | . . . . . . . . . . . 172 . . Total Part Build Rating 37 | . . . . . . . . . . . 37 . . Parts Repaired 7 | . . . . . 2 3 . . . . 2 . . Time 271 | . . . . . 91 114 . . . . 66 . . Parts Recycled . | . . . . . . . . . . . . . . Recycled Matter . | . . . . . . . . . . . . . . Retrieved Matter . | . . . . . . . . . . . . . . Retrieved Components 24 | . 10 . . . . 7 . . . . 7 . . Parts Scanalyzed 8 | . . . . . 5 . . . . . 3 . . Part Schematics Acquired 8 | . . . . . 5 . . . . . 3 . . Parts Damaged . | . . . . . . . . . . . . . . Bothacking | -11 -10 -10 -10 -9 -8 -7 -7 -7 -7 -6 -6 -5 -5 ------------ Run | Scr Mat Min Exi Min Mat Fac Low Low Dat Pro Fac Fac DSF Used RIF Installer . | . . . . . . . . . . . . . . Robots Hacked 1 | . . . . . . 1 . . . . . . . Non-combat 1 | . . . . . . 1 . . . . . . . Combat . | . . . . . . . . . . . . . . Robot Hacks Applied 1 | . . . . . . 1 . . . . . . . no_distress 1 | . . . . . . 1 . . . . . . . Relay Couplers Released . | . . . . . . . . . . . . . . Fabnet Peak Effective % . | . . . . . . . . . . . . . . Robots Rewired . | . . . . . . . . . . . . . . Allies Hacked . | . . . . . . . . . . . . . . Hacks Repelled . | . . . . . . . . . . . . . . Allies | -11 -10 -10 -10 -9 -8 -7 -7 -7 -7 -6 -6 -5 -5 -------- Run | Scr Mat Min Exi Min Mat Fac Low Low Dat Pro Fac Fac DSF Total Allies 2 | . . 1 . . . . . . . 1 . . . Largest Group 1 | . . 1 . . . . . . . 1 1 . . Highest-Rated Group 96 | . . 31 . . . . . . . 96 96 . . Highest-Rated Ally 96 | . . 31 . . . . . . . 96 96 . . Total Orders 7 | . . 2 5 . . . . . . . . . . STAY 2 | . . . 2 . . . . . . . . . . ROAM 2 | . . . 2 . . . . . . . . . . EXPLORE 3 | . . 2 1 . . . . . . . . . . Ally Attacks 35 | . . 12 . . . . . . . 10 13 . . Total Damage 1096 | . . 169 . . . . . . . 471 456 . . Kills 7 | . . . . . . . . . . 4 3 . . Allies Corrupted . | . . . . . . . . . . . . . . Allies Melted . | . . . . . . . . . . . . . . Intel | -11 -10 -10 -10 -9 -8 -7 -7 -7 -7 -6 -6 -5 -5 ------- Run | Scr Mat Min Exi Min Mat Fac Low Low Dat Pro Fac Fac DSF Robot Analysis Total 8 | . 3 . . 1 2 . . . . . 2 . . Derelict Logs Recovered 5 | . . . . 2 . . 1 1 . 1 . . . Drone Launches 23 | . . 20 3 . . . . . . . . . . Drone Recoveries 19 | . . 18 1 . . . . . . . . . . Exploration | -11 -10 -10 -10 -9 -8 -7 -7 -7 -7 -6 -6 -5 -5 ------------- Run | Scr Mat Min Exi Min Mat Fac Low Low Dat Pro Fac Fac DSF Turns Passed 17271 | 5540 1060 807 2294 576 1456 1093 583 596 146 409 2509 32 170 Spaces Moved 6522 | 289 729 437 988 404 643 609 314 277 88 173 1442 48 81 Core 2 | 1 1 . . . . . . . . . . . . Treads 2010 | . 16 . 178 . 214 174 314 277 88 173 576 . . Legs . | . . . . . . . . . . . . . . Wheels 3515 | 288 712 437 810 404 429 435 . . . . . . . Hover 995 | . . . . . . . . . . . 866 48 81 Flight . | . . . . . . . . . . . . . . Fastest Speed 50 | 50 80 110 95 95 110 130 166 166 166 166 68 68 68 Average Speed 132 | 79 107 121 140 108 143 146 166 166 166 210 127 68 81 Slowest Speed 250 | 80 160 125 240 110 250 166 166 166 166 246 246 68 138 Overloaded Moves . | . . . . . . . . . . . . . . Propulsion Burnouts . | . . . . . . . . . . . . . . Robots Hopped . | . . . . . . . . . . . . . . Cave-ins Triggered . | . . . . . . . . . . . . . . Exploration Rate (%) 58 | 57 96 97 93 95 62 18 51 44 71 39 40 1 48 Regions Visited 13 Branch Regions 7 Pre-discovered Areas 4 | . 2 . 1 . . . . . 1 . . . . Known Exits Taken 3 | . 1 . . . 1 . . . . . . 1 . Unknown Exits Taken 10 | 1 . 1 1 1 . 1 1 1 1 1 1 . . Scrap Searched 16 | . . 3 . 2 . . 3 3 . 5 . . . Spaces Dug 2 | . . . . . 2 . . . . . . . . Terrain Destroyed 411 | . . 47 33 16 202 7 2 24 . . 80 . . Melee 2 | . . . . . 2 . . . . . . . . Projectile 62 | . . . 8 16 33 4 1 . . . . . . AOE 341 | . . 47 25 . 164 1 . 24 . . 80 . . Terrain Rammed . | . . . . . . . . . . . . . . Walls Destroyed . | . . . . . . . . . . . . . . Machines Disabled . | . . . . . . . . . . . . . . Actions | -11 -10 -10 -10 -9 -8 -7 -7 -7 -7 -6 -6 -5 -5 --------- Run | Scr Mat Min Exi Min Mat Fac Low Low Dat Pro Fac Fac DSF Total 14276 | 5593 887 668 1757 505 992 763 356 359 88 202 1926 47 133 Wait 6436 | 5294 33 172 615 48 19 80 . 5 . 2 166 . 2 Move 6509 | 288 728 436 987 403 642 608 313 276 87 172 1441 47 81 Hop . | . . . . . . . . . . . . . . Pick Up 74 | 3 4 4 15 . 9 3 . 3 . 4 28 . 1 Fast Attach 64 | 6 8 2 5 2 10 5 . 3 . 1 14 . 8 Attach 25 | 1 . 1 3 1 5 1 . 1 1 . 11 . . Detach 5 | . . . 1 . 3 . . . . . 1 . . Swap 46 | . 5 5 3 1 10 6 1 1 . . 12 . 2 Drop 107 | . 11 6 20 . 19 6 . 4 . 1 34 . 6 Fire 544 | 1 63 27 95 36 161 47 19 31 . 6 41 . 17 Melee 128 | . . . . . 15 1 . 13 . 6 82 . 11 Ram . | . . . . . . . . . . . . . . Kick . | . . . . . . . . . . . . . . Crush . | . . . . . . . . . . . . . . Escape Stasis . | . . . . . . . . . . . . . . Rewire 1 | . . . 1 . . . . . . . . . . Trap 2 | . . . . . . . . . . . . . 2 Miscellaneous 335 | . 35 15 12 14 99 6 23 22 . 10 96 . 3 Route ------- -11/Scrapyard -10/Materials (discovered 5 exits: *Mat x3 / *Min x2) -10/Mines (discovered 3 exits: *Mat x2 / *Exi) -10/Exiles (discovered 2 exits: *Min x2) -9/Mines (discovered 2 exits: *Mat x2) -8/Materials (discovered 3 exits: *Fac x3) -7/Factory -7/Lower Caves -7/Lower Caves -7/Data Miner -6/Proximity Caves -6/Factory (discovered 3 exits: *Fac / Low x2) -5/Factory -5/DSF (discovered 1 exit: [*Fac]) History --------- Turn | Location | Event 9 | -11/Scrapyard | Upgraded with Propulsion slot (x1) 9 | -11/Scrapyard | Upgraded with Utility slot (x1) 9 | -11/Scrapyard | Upgraded with Weapon slot (x1) 13 | -11/Scrapyard | Discovered new exit (range 16) 5541 | -11/Scrapyard | Entered Materials 5542 | -10/Materials | Build established: Mutant 5716 | -10/Materials | Core integrity fell below 50% 5751 | -10/Materials | Discovered new exit (range 10) 5763 | -10/Materials | Destroyed 7 combat bots 5789 | -10/Materials | Reached level 2 5816 | -10/Materials | Upgraded with Utility slot (x1) 5941 | -10/Materials | Discovered new exit (range 11) 6004 | -10/Materials | Discovered new exit (range 13) 6095 | -10/Materials | Central database locked down 6119 | -10/Materials | Discovered new exit (range 5) 6259 | -10/Materials | Discovered new exit (range 13) 6279 | -10/Materials | Identified exit to Mines 6601 | -10/Materials | Entered Mines 6603 | -10/Mines | Reached level 3 6607 | -10/Mines | Upgraded with Utility slot (x1) 6662 | -10/Mines | YI-UF0 nonchalantly dropped a Grenade Launcher on the ground 6720 | -10/Mines | Discovered new exit (range 10) 6748 | -10/Mines | Received a Mining Laser from a helpful Derelict 6787 | -10/Mines | Destroyed YI-UF0 6909 | -10/Mines | Assembled infested the area 6968 | -10/Mines | Build established: Hacker-Mutant 6970 | -10/Mines | Destroyed 10 combat bots 7105 | -10/Mines | Found the Drone Emporium 7112 | -10/Mines | Found Prototype Device 7112 | -10/Mines | Identified Sensor Drone Bay 7142 | -10/Mines | Discovered new exit (range 30) 7287 | -10/Mines | Identified exit to Materials 7401 | -10/Mines | Deemed a non-threat by the Exiles lab entrance 7401 | -10/Mines | Discovered new exit (range 5) 7408 | -10/Mines | Entered Exiles 7408 | -10/Exiles | Accompanied by 2 allies 7421 | -10/Exiles | Discovered new exit (range 25) 7456 | -10/Exiles | Met 8R-AWN 7477 | -10/Exiles | Met EX-HEX 7526 | -10/Exiles | Met EX-DEC 7533 | -10/Exiles | Learned location of Zion (-6) 7546 | -10/Exiles | Discovered new exit (range 52) 7611 | -10/Exiles | Met EX-BIN 7912 | -10/Exiles | Aligned with FarCom system 7913 | -10/Exiles | Given EX-Vault access code 7951 | -10/Exiles | Opened EX-Vault 7958 | -10/Exiles | Found Latent Energy Streamer 7985 | -10/Exiles | Warned to stay clear of 0b10 Research branches 8137 | -10/Exiles | Found AWS/Thermal 8699 | -10/Exiles | Attacked by the Exiles 8808 | -10/Exiles | Core integrity fell below 20% 8853 | -10/Exiles | Destroyed 8R-AWN 8858 | -10/Exiles | Found Prototype Ballistic Gun 8882 | -10/Exiles | Found Prototype Device 8882 | -10/Exiles | Identified AS-neutralizer No. 17b 8886 | -10/Exiles | Found Prototype Processor 8886 | -10/Exiles | Identified Exp. Targeting Computer 8888 | -10/Exiles | Identified 8R-AWN's Boregun 9177 | -10/Exiles | Build established: Scavenger-Mutant 9241 | -10/Exiles | Destroyed EX-HEX 9294 | -10/Exiles | Destroyed EX-DEC 9322 | -10/Exiles | Destroyed EX-BIN 9353 | -10/Exiles | Found Prototype Device 9353 | -10/Exiles | Identified System Purifier 9512 | -10/Exiles | System corruption reached 10% 9702 | -10/Exiles | Left Exiles lab with Latent Energy Streamer 9702 | -10/Exiles | Entered Mines 9704 | -9/Mines | Reached level 4 9739 | -9/Mines | Discovered new exit (range 12) 9902 | -9/Mines | Upgraded with Weapon slot (x1) 10036 | -9/Mines | Learned Materials emergency access door positions 10113 | -9/Mines | Discovered new exit (range 12) 10115 | -9/Mines | Reached level 5 10138 | -9/Mines | Upgraded with Utility slot (x1) 10278 | -9/Mines | Entered Materials 10279 | -8/Materials | Core integrity fell below 50% 10280 | -8/Materials | Reached level 6 10287 | -8/Materials | Upgraded with Propulsion slot (x1) 10384 | -8/Materials | Core integrity fell below 20% 10511 | -8/Materials | Identified exit to Factory 10567 | -8/Materials | Reached level 7 10577 | -8/Materials | Upgraded with Utility slot (x1) 10676 | -8/Materials | Reached level 8 11161 | -8/Materials | Reached level 9 11298 | -8/Materials | Repaired Corrupted Hvy. Deuterium Engine? 11360 | -8/Materials | Repaired Corrupted Cmb. Antigrav System 11381 | -8/Materials | Upgraded with Utility slot (x1) 11478 | -8/Materials | First assault squad dispatched 11553 | -8/Materials | Reached level 10 11646 | -8/Materials | System corruption reached 10% 11734 | -8/Materials | Entered Factory 11736 | -7/Factory | Reached level 11 11740 | -7/Factory | Upgraded with Power slot (x1) 11740 | -7/Factory | Upgraded with Utility slot (x1) 11866 | -7/Factory | Repaired Imp. Light Armor Plating 11907 | -7/Factory | Repaired Arm. Treads? 11907 | -7/Factory | Build established: Hacker-Mutant 11957 | -7/Factory | Repaired Imp. Terrain Scanner? 12273 | -7/Factory | Assembled infested Garrison Access 12325 | -7/Factory | Core integrity fell below 50% 12676 | -7/Factory | Core integrity fell below 20% 12678 | -7/Factory | Reached level 12 12754 | -7/Factory | Discovered new exit (range 9) 12827 | -7/Factory | Entered Lower Caves 12950 | -7/Lower Caves | Learned Factory terminal intel 13376 | -7/Lower Caves | Discovered new exit (range 16) 13410 | -7/Lower Caves | Entered another Lower Caves area 13412 | -7/Lower Caves | Reached level 13 13420 | -7/Lower Caves | Upgraded with Utility slot (x1) 13524 | -7/Lower Caves | Spotted B-75 Beast 13585 | -7/Lower Caves | Destroyed B-75 Beast 13920 | -7/Lower Caves | Learned Factory terminal intel 13942 | -7/Lower Caves | Spotted ZZ-AZH(f) 13942 | -7/Lower Caves | Spotted F8-6HG(f) 13943 | -7/Lower Caves | Encountered a Master Thief 13943 | -7/Lower Caves | Encountered a Master Thief 13943 | -7/Lower Caves | Spotted XZ-SRJ(f) 13943 | -7/Lower Caves | Spotted 3A-E4O(f) 13944 | -7/Lower Caves | Encountered a Master Thief 13944 | -7/Lower Caves | Encountered a Master Thief 13944 | -7/Lower Caves | System corruption reached 10% 13946 | -7/Lower Caves | Latent Energy Streamer stolen by Master Thief 13947 | -7/Lower Caves | Spotted RB-9FQ(f) 13948 | -7/Lower Caves | Encountered a Master Thief 13949 | -7/Lower Caves | Cmb. Antigrav System stolen by Master Thief 13951 | -7/Lower Caves | Destroyed ZZ-AZH(f) 13954 | -7/Lower Caves | Destroyed F8-6HG(f) 13969 | -7/Lower Caves | Destroyed 3A-E4O(f) 13985 | -7/Lower Caves | Discovered new exit (range 13) 14006 | -7/Lower Caves | Entered Data Miner 14007 | -7/Data Miner | Discovered new exit (range 6) 14037 | -7/Data Miner | Met Data Miner 14037 | -7/Data Miner | Reached level 14 14074 | -7/Data Miner | Learned location of Section 7 (-2) 14074 | -7/Data Miner | Acquired the access code to Warlord's prototype stash 14104 | -7/Data Miner | Received God Mode back door access code from Data Miner 14152 | -7/Data Miner | Entered Proximity Caves 14174 | -6/Proximity Caves | Escorted by Enhanced Grunt 14185 | -6/Proximity Caves | Reached level 15 14255 | -6/Proximity Caves | Learned Factory trap positions 14440 | -6/Proximity Caves | Attracted the attention of an 0b10 checkpoint 14523 | -6/Proximity Caves | Discovered new exit (range 15) 14561 | -6/Proximity Caves | Entered Factory 14561 | -6/Factory | Accompanied by 1 ally 14562 | -6/Factory | Loaded intel: 101 trap records 14563 | -6/Factory | Loaded intel: 26 terminal locations 14563 | -6/Factory | Reached level 16 14571 | -6/Factory | Upgraded with Utility slot (x1) 14670 | -6/Factory | Core integrity fell below 50% 14853 | -6/Factory | Repaired Imp. Medium Armor Plating 14964 | -6/Factory | Spotted B-75 Beast 15061 | -6/Factory | Reached level 17 15061 | -6/Factory | Destroyed B-75 Beast 15066 | -6/Factory | Upgraded with Utility slot (x1) 15326 | -6/Factory | Incoming investigation squad redirected 15328 | -6/Factory | Fabricated Cmb. Antigrav System? 15621 | -6/Factory | Fabricated Cmb. Antigrav System? 15699 | -6/Factory | Discovered new exit (range 12) 15790 | -6/Factory | Identified exit to Lower Caves 15959 | -6/Factory | Reached level 18 15960 | -6/Factory | Upgraded with Propulsion slot (x1) 15989 | -6/Factory | Destroyed 9 combat bots 16170 | -6/Factory | Repaired Med. Reactive Plating? 16311 | -6/Factory | First assault squad dispatched 16335 | -6/Factory | Incoming assault squad redirected 16423 | -6/Factory | Incoming investigation squad redirected 16473 | -6/Factory | Fabricated Lgt. Regenerative Plating? 16661 | -6/Factory | Garrison activated, responded to threat 16664 | -6/Factory | Reached level 19 16689 | -6/Factory | Upgraded with Power slot (x1) 16691 | -6/Factory | Destroyed 7 combat bots 17070 | -6/Factory | Entered another Factory area 17071 | -5/Factory | Loaded intel: 28 terminal locations 17072 | -5/Factory | Reached level 20 17100 | -5/Factory | Identified exit to DSF 17102 | -5/Factory | Entered DSF 17104 | -5/DSF | Reached level 21 17105 | -5/DSF | Upgraded with Utility slot (x1) 17123 | -5/DSF | Additional patrols routed to DSF 17188 | -5/DSF | Core integrity fell below 50% 17221 | -5/DSF | Core integrity fell below 20% 17251 | -5/DSF | Discovered new exit (range 16) 17272 | -5/DSF | Destroyed by X-72 Disruptor with Improved Arc Projector Last Messages --------------- 17223_ Knocked back. 17225_ Critical hit (Destroy). 17226_ Slug penetrates Wall. 17227_ HV Slug penetrates H-66 Slayer. 17228_ The unstable cave ceiling collapses. 17228_ 10 Matter crushed. 17228_ Penetrated by Slug. 17228_ Knocked back. 17229_ Penetrated by Slug. 17240_ Acquired Adv. Terrain Scanner. 17250_ ALERT: Suspicious intruders detected, dispatching Specialist reinforcements to area. 17251_ EXIT=FOUND 17264_ Dropped Corrupted Matter Compressor. 17264_ Acquired Force Lance. 17265_ Dropped Hyp. Gauss Cannon. 17266_ Slug penetrates Wall. 17266_ Acquired Force Lance. 17269_ Dropped Imp. Proton Missile Launcher. 17269_ Acquired Force Lance. Map ----- +----------------------------------------------------+ | | | | | | | | | | | | | | | | | ?????????????????##???###??#?#?###?????##?#??## | | ???????#??##?##?#?##?#?#?####??#######??##??##? | | ??????##?#?#######?#??####??##?####??#?##?##?#? | | ?????#????????###??###?##?####?##########?#?##? | | ??????#??????###??##?#?##?############""#####?# | | ????????????##??##?##??##?###?########"######## | | ?????#??##"?#####???##################"#######? | | ????#?????""????#####!! !!#########"""""#?### | | ???????""?""##!!# #!! !!#!!!#!!##"""""####? | | ??????#?"< ""##"## | | ?????"??" """""## | | ????????"? ##!!#!!!### h###!!!# !## ""##### | | ??#?????# ???? #! ### ###!!!#!!### ####### | | ????#?#?# #?##?#???#== !!########## ####### | | ????????? ??#?#??###== !!########! !###### | | ????#?#? ? ?###?####==x !!########!! !###### | | ???###?#????##??#?#?#;#xx ######??#### ####### | | ?????????? ??##??#?##/@! !!########!! ###?## | | ????????? ? #????#?# ] !!########!! ###### | | ?????##????????###??#// A !!########! ###### | | ???#?##?# ?#?##?##??### ############ ####### | | ??????? ??## ??#? ?### ###! # ## !!%# # | | ????????? ##? ?#?? ## H%##!!!# # %*!!" ## | | ??????#?? ????? ? ?? "% [%[ *%% =%[[ # | | ???#????????? ? ? *== /!= !%=[[## # | | ?????##??? ?? ?? ? % ^ %%[[ ## | | ????????????# ???? ??# ##!!!" " ==]]# ## | | ?????#?? ? ?# ????? ?## A###!!!# "#*! ] ###? | | ????????????????##?#### ############ ####### | | ???????????? #?#??#?? * ########&^ ###### | | ???????#??? ??#?#???#? * #####??#&^ ###### | | ???????? ? ?????????# * ########&& #####? | | ?????????????#?#??#?#?# ############ ####### | | ???????????????#???## ?? ? ######## &##?### | | ??????????? ???#??#?# ######## &#?#### | | ?????????????##??#??? ?? ########## ####?#? | | ??????????????????????? ### ?# ### ####### | | ?????????????????????## ? ### # ## ""##### | | ???????????????????? ? ? ? """""## | | ????????????????????? ?? ""##"## | | ???????????????????????? ?#? ? ##"""""##### | | ???????????????????????? ??########"""""##?#? | +----------------------------------------------------+ Best States ------------- Heat Dissipation 82 Energy Generation 50 Energy Capacity 1100 Matter Stores 550 Matter Capacity 550 Sight Range 17 Robot Scan Range 16 Terrain Scan Range 20 Terrain Scan Density 210 Cloak Strength 2 Power Amplification 20 Additional Mass Support 12 Armor Coverage 1050 Resistance: KI 30 Resistance: TH 10 Resistance: EM 15 Evasion (%) 61 Targeting Accuracy 12 Melee Accuracy 8 Core Analysis 6 Armor Integrity Analysis 40 Recoil Reduction 3 Matter Filtering 30 Force Boost 20 Offensive Hacking 32 Defensive Hacking 10 Authchip Count 1 Item Schematics ----------------- Shield Generator | -8/Materials | Hacked Cmb. Antigrav System | -8/Materials | Scanalyzed Hvy. Deuterium Engine | -8/Materials | Scanalyzed Hrd. Heavy Armor Plating | -8/Materials | Scanalyzed Arm. Treads | -8/Materials | Scanalyzed Impact Mace | -8/Materials | Scanalyzed Arm. Wheel | -8/Materials | Hacked Combat Drone Bay | -7/Data Miner | Free Lgt. Regenerative Plating | -7/Data Miner | Free Cld. Cesium-ion Thruster | -7/Data Miner | Free Gravity Neutralizer | -7/Data Miner | Free Imp. Lightning Gun | -7/Data Miner | Free Arm. Medium Treads | -7/Data Miner | Free Adv. Drone Bay | -7/Data Miner | Free Adv. Plasma Cannon | -7/Data Miner | Free Imp. Antigrav System | -7/Data Miner | Free Cmb. Airjet | -7/Data Miner | Free Matter Neutralizer | -7/Data Miner | Free F-cell Engine | -6/Factory | Scanalyzed Enh. Gauss Cannon | -6/Factory | Scanalyzed Hardlight Generator | -6/Factory | Scanalyzed Imp. Shield Generator | -6/Factory | Hacked Imp. Actuator Array | -6/Factory | Hacked Adv. Hardlight Generator | -6/Factory | Hacked Robot Schematics ------------------ S-27 Virus | -7/Data Miner | Free E-15 Imp | -7/Data Miner | Free G-50 Soldier | -7/Data Miner | Free R-10 Processor | -7/Data Miner | Free C-35 Carver | -7/Data Miner | Free Y-54 Guardian | -7/Data Miner | Free Fabricated ------------ Cmb. Antigrav System | x2 | -6/Factory Cmb. Antigrav System | x2 | -6/Factory Lgt. Regenerative Plating | x1 | -6/Factory Alien Tech Used ----------------- None Achievements -------------- None Challenges ------------ None RPGLIKE | -11 -10 -10 -10 -9 -8 -7 -7 -7 -7 -6 -6 -5 -5 --------- Run | Scr Mat Min Exi Min Mat Fac Low Low Dat Pro Fac Fac DSF Levels Raised 20 | . 1 1 . 2 5 2 . 1 1 1 4 1 1 XP Earned 33456 | 3000 2722 1215 350 1850 8134 2620 1100 1000 650 2068 6006 1500 1241 XP Spent 32970 | 2700 1795 1100 200 3175 5680 3200 . 2600 . . 9020 . 3500 Upgrades 46 | 8 6 1 4 5 6 3 . 1 . . 11 . 1 Power Slot 2 | . . . . . . 1 . . . . 1 . . Propulsion Slot 3 | 1 . . . . 1 . . . . . 1 . . Utility Slot 11 | 1 1 1 . 1 2 1 . 1 . . 2 . 1 Weapon Slot 2 | 1 . . . 1 . . . . . . . . . Core Integrity 8 | . 1 . 4 1 2 . . . . . . . . Heat Dissipation 5 | . 2 . . . . . . . . . 3 . . Energy Generation 1 | . . . . . . . . . . . 1 . . Mass Support 1 | . . . . . . . . . . . 1 . . Inventory Capacity 4 | 2 1 . . . 1 . . . . . . . . Sight Range 1 | . 1 . . . . . . . . . . . . Terrain Scan Density 2 | 1 . . . . . . . . . . 1 . . Ranged Accuracy 1 | . . . . . . 1 . . . . . . . Melee Accuracy 1 | . . . . . . . . . . . 1 . . Hack Attack % 2 | 1 . . . 1 . . . . . . . . . Hack Defense % 2 | 1 . . . 1 . . . . . . . . . Protomatter Created 2772 | . 270 173 97 145 831 87 171 152 . 30 783 . 33 Integrity Restored 7273 | . 706 312 288 321 2184 123 513 456 . 192 2109 . 69 Core 7059 | . 581 223 288 321 2184 123 513 456 . 192 2109 . 69 Parts 214 | . 125 89 . . . . . . . . . . . Protomatter Decayed 395 | . 2 55 . 100 50 142 . . . . 46 . . Game ------ Seed ExplosiveTrackerDevice Manual? 0 Play Time 02:33:13 Cumulative 450.1 hours Start 2022.07.12 @ 14:05:35 End 2022.07.14 @ 19:35:35 Sessions 5 Manual Loads 0 Difficulty Rogue Special Mode Winter2019/RPGLIKE Game No. 174 Rogue 171 Adventurer 3 Explorer 0 Win Type - Total 8 Types 5/1/0/1/0/1/0/0/0 Lore% 84 Gallery% 87 Achievement% 78 Wizard Run 0 Options --------- ASCII 0 Keyboard 0 Movement Numpad Keybinds 0 Fullscreen 1 Font 18/SmallcapsGlow Map View 76x50 Tactical HUD 1 Map Filters NONE Filters NONE Steam 1 RUN: 5ca97e23-cc2a-4888-9b36-e85f7858c63f